[Event "Israel National League 2024"]
[Site "Israel"]
[Date "2024.03.01"]
[Round "9.14"]
[White "Kochavi, Ori"]
[Black "Rozen, Eytan"]
[Result "0-1"]
[ECO "B70"]
[WhiteElo "2428"]
[BlackElo "2462"]
[Annotator "RC"]
[PlyCount "194"]
[EventDate "2024.01.07"]
[EventType "team-tourn"]
[EventCountry "ISR"]
[SourceTitle "playchess.com"]
[Source "ChessBase"]
[SourceQuality "1"]
[TimeControl "40/5400+30:1800+30"]

1. e4 {[%emt 0:00:42]} c5 {[%emt 0:01:00]} 2. Nf3 {[%emt 0:00:04]} g6 {[%emt 0:00:08]} 3. d4 {[%emt 0:04:36]} cxd4 {[%emt 0:00:05]} 4. Qxd4 {[%emt 0:00:04]} Nf6 {[%emt 0:00:06]} 5. Nc3 {[%emt 0:00:04]} Nc6 {[%emt 0:00:03]} 6. Qd1 {[%emt 0:00:26]} d6 {[%emt 0:03:06]} 7. h3 {[%emt 0:02:40]} Bg7 {[%emt 0:00:07]} 8. Bc4 {[%emt 0:02:29]} O-O {[%emt 0:00:22]} 9. O-O {[%emt 0:00:13]} a6 {[%emt 0:00:07]} 10. a3 {[%emt 0:01:53]} b5 {[%emt 0:04:26]} 11. Ba2 {[%emt 0:00:17]} b4 {[%emt 0:03:57]} 12. axb4 {[%emt 0:01:34]} Nxb4 {[%emt 0:00:02]} 13. Bb3 {[%emt 0:03:19]} a5 {[%emt 0:05:38]} 14. Re1 {[%emt 0:13:39]} Bb7 {[%emt 0:04:47]} 15. Bg5 {[%emt 0:12:48]} h6 {[%emt 0:04:24]} 16. Bf4 {[%emt 0:00:10]} Nd7 {[%emt 0:11:36]} 17. Qd2 {[%emt 0:06:45]} Kh7 {[%emt 0:05:15]} 18. h4 {[%emt 0:18:25]} e5 {[%emt 0:11:09]} 19. Bh2 {[%emt 0:07:28]} Nc5 {[%emt 0:00:28]} 20. Rad1 {[%emt 0:01:18]} Nbd3 {[%emt 0:02:14]} 21. cxd3 {[%emt 0:01:26]} Nxb3 {[%emt 0:00:01]} 22. Qc2 {[%emt 0:00:07]} Qb6 {[%emt 0:01:49]} 23. Nd2 {[%emt 0:06:55]} Nd4 {[%emt 0:01:32]} 24. Qb1 {[%emt 0:01:08]} Qd8 {[%emt 0:04:39]} 25. Nc4 {[%emt 0:01:07]} a4 {[%emt 0:04:18]} 26. Ne2 {[%emt 0:04:31]} Nb3 {[%emt 0:04:43]} 27. Qa2 {[%emt 0:01:30]} d5 {[%emt 0:03:34]} 28. Nxe5 {[%emt 0:01:11]} Qxh4 {[%emt 0:02:46]} 29. Nc3 {[%emt 0:02:10]} dxe4 {[%emt 0:01:52]} 30. dxe4 {[%emt 0:00:14]} Qh5 {[%emt 0:02:05]} 31. Rd7 {[%emt 0:01:04]} Bxe5 {[%emt 0:06:26]} 32. Bxe5 {[%emt 0:00:05]} Bc6 {[%emt 0:00:39]} 33. Re7 {[%emt 0:00:27]} Qg5 {[%emt 0:01:07]} 34. Qa3 {[%emt 0:01:25]} Nd2 {[%emt 0:02:10]} 35. Bg3 {[%emt 0:00:09]} Nc4 {[%emt 0:01:19]} 36. Qb4 {[%emt 0:00:05]} Nxb2 {[%emt 0:00:11]} 37. Re3 {[%emt 0:02:42]} a3 {[%emt 0:02:22]} 38. Rf3 {[%emt 0:00:25]} Kg8 {[%emt 0:01:03]} 39. Bf4 {[%emt 0:00:40]} Qh4 {[%emt 0:03:05]} 40. Bg3 {[%emt 0:01:34]} Qg5 {[%emt 0:01:52]} 41. Bf4 {[%emt 0:04:07]} Qh5 {[%emt 0:17:03]} 42. Rh3 {[%emt 0:11:37]} Qg4 {[%emt 0:08:46]} 43. Bxh6 {[%emt 0:00:56]} Rfd8 {[%emt 0:04:25]} 44. f3 {[%emt 0:00:38]} Qc8 {[%emt 0:01:45]} 45. Qc5 {[%emt 0:05:56]} Qb8 {[%emt 0:02:07]} 46. Nd5 {[%emt 0:04:12]} Rxd5 {[%emt 0:01:16]} 47. exd5 {[%emt 0:00:04]} a2 {[%emt 0:00:46]} 48. Qc3 {[%emt 0:00:22]} a1=Q+ {[%emt 0:01:49]} 49. Bc1 {[%emt 0:00:04]} Qxc1+ {[%emt 0:00:00]} 50. Qxc1 {[%emt 0:00:04]} Bxd5 {[%emt 0:00:18]} 51. Re2 {[%emt 0:07:48]} Qb6+ {[%emt 0:00:37]} 52. Kh2 {[%emt 0:00:11]} Qd6+ {[%emt 0:00:32]} 53. g3 {[%emt 0:00:22]} Nc4 {[%emt 0:00:27]} 54. Qh6 {[%emt 0:01:49]} Qf6 {[%emt 0:00:05]} 55. Qh7+ {[%emt 0:00:05]} Kf8 {[%emt 0:00:01]} 56. Qh6+ {[%emt 0:00:08]} Kg8 {[%emt 0:00:06]} 57. Qh7+ {[%emt 0:00:04]} Kf8 {[%emt 0:00:00]} 58. Qh6+ {[%emt 0:00:08]} Qg7 {[%emt 0:00:11]} 59. Qh8+ {[%emt 0:01:15]} Qxh8 {[%emt 0:00:01]} 60. Rxh8+ {[%emt 0:00:06]} Kg7 {[%emt 0:00:06]} 61. Rxa8 {[%emt 0:00:03]} Bxa8 {[%emt 0:00:02]} 62. f4 {[%emt 0:00:30]} Bf3 {[%emt 0:00:31]} 63. Rc2 {[%emt 0:00:15]} Ne3 {[%emt 0:01:24]} 64. Rc3 {[%emt 0:00:07]} Ng4+ {[%emt 0:00:07]} 65. Kg1 {[%emt 0:00:25]} Be4 {[%emt 0:00:31]} 66. Kf1 {[%emt 0:00:44]} Kf6 {[%emt 0:00:32]} 67. Ke2 {[%emt 0:00:14]} Bd5 {[%emt 0:00:50]} 68. Rc5 {[%emt 0:00:19]} Ke6 {[%emt 0:00:21]} 69. Ra5 {[%emt 0:00:23]} Nf6 {[%emt 0:00:11]} 70. Ke3 {[%emt 0:01:40]} Ng4+ {[%emt 0:01:37]} 71. Kd4 {[%emt 0:00:12]} Bf3 {[%emt 0:00:57]} 72. Ra6+ {[%emt 0:00:35]} Kf5 {[%emt 0:00:04]} 73. Ra5+ {[%emt 0:00:10]} Ke6 {[%emt 0:00:04]} 74. Ra6+ {[%emt 0:00:04]} Kf5 {[%emt 0:00:02]} 75. Ra5+ {[%emt 0:00:04]} Kf6 {[%emt 0:00:11]} 76. Ra6+ {[%emt 0:00:29]} Kg7 {[%emt 0:00:00]} 77. Ra3 {[%emt 0:00:27]} Bc6 {[%emt 0:00:10]} 78. Ra6 {[%emt 0:00:06]} Bd7 {[%emt 0:00:11]} 79. Ra7 {[%emt 0:00:18]} Be6 {[%emt 0:00:15]} 80. Ra5 {[%emt 0:00:51]} Kh6 {[%emt 0:00:40]} 81. Ra8 {[%emt 0:01:16]} Nf6 {[%emt 0:00:26]} 82. Rh8+ {[%emt 0:00:35]} Kg7 {[%emt 0:00:01]} 83. Ra8 {[%emt 0:00:06]} Nh5 {[%emt 0:00:20]} 84. Ra3 {[%emt 0:00:06]} Bf5 {[%emt 0:00:33]} 85. Ke5 {[%emt 0:00:27]} Kh6 {[%emt 0:00:57]} 86. Rb3 {[%emt 0:00:29]} Be6 {[%emt 0:00:33]} 87. Ra3 {[%emt 0:00:07]} Ng7 {[%emt 0:00:54]} 88. Kf6 {[%emt 0:01:32]} Ne8+ {[%emt 0:00:25]} 89. Ke7 {[%emt 0:00:04]} Nc7 {[%emt 0:00:15]} 90. Kf8 {[%emt 0:04:07]} Nd5 {[%emt 0:00:29]} 91. Rd3 {[%emt 0:00:46]} Kh5 {[%emt 0:00:29]} 92. Kg7 {[%emt 0:00:04]} Kg4 {[%emt 0:05:34]} 93. Ra3 {[%emt 0:01:03]} Ne7 {[%emt 0:00:00]} 94. Ra6 {[%emt 0:00:35]} Nf5+ {[%emt 0:00:00]} 95. Kf6 {[%emt 0:00:07]} Nxg3 {[%emt 0:00:00]} 96. Ke5 {[%emt 0:00:49]} Nh5 {[%emt 0:00:00]} 97. Ra4 {[%emt 0:00:18]} Bf5 {[%emt 0:00:00]} 0-1

[Event "Israel National League 2024"]
[Site "Israel"]
[Date "2024.03.01"]
[Round "9.15"]
[White "Erenberg, Ariel"]
[Black "Ben Ari, Yannay"]
[Result "0-1"]
[ECO "B48"]
[WhiteElo "2496"]
[BlackElo "2417"]
[Annotator "TA"]
[PlyCount "46"]
[EventDate "2024.01.07"]
[EventType "team-tourn"]
[EventCountry "ISR"]
[SourceTitle "playchess.com"]
[Source "ChessBase"]
[SourceQuality "1"]
[TimeControl "40/5400+30:1800+30"]

{[%evp 11,46,31,48,0,0,0,2,0,0,0,0,-18,0,-26,-22,-15,-22,-125,-133,-124,-104,-112,-110,-141,-91,-333,-327,-500,-507,-521,-517,-597,-566,-574,-585,-629,-618]} 1. e4 {[%emt 0:00:22]} c5 {[%emt 0:01:44]} 2. Nf3 {[%emt 0:00:06]} e6 {[%emt 0:00:06]} 3. d4 {[%emt 0:00:11]} cxd4 {[%emt 0:00:05]} 4. Nxd4 {[%emt 0:00:04]} Nc6 {[%emt 0:00:07]} 5. Nc3 {[%emt 0:00:53]} Qc7 {[%emt 0:03:52]} 6. Be3 {[%emt 0:00:29]} a6 {[%emt 0:00:11]} 7. g4 {[%emt 0:00:05]} (7. a3 $14) 7... b5 $11 {[%emt 0:00:47]} 8. Nxc6 {[%emt 0:00:14]} Qxc6 {[%emt 0:00:09]} 9. Qd2 {[%emt 0:00:04] The position is equal.} b4 {[%emt 0:00:45]} 10. Ne2 {[%emt 0:00:14]} Qxe4 {[%emt 0:00:09]} 11. Rg1 {[%emt 0:00:02] [#] Bg2 is the strong threat.} Qc4 {[%emt 0:00:18]} 12. Nd4 {[%emt 0:05:06]} Qc7 {[%emt 0:00:50][%cal Oc8b7]} 13. O-O-O {[%emt 0:03:25]} Nf6 {[%emt 0:27:04][%cal Of6d5]} 14. f4 {[%emt 0:20:28]} (14. Bf4 $11 d6 15. Qxb4) 14... Bb7 $17 {[%emt 0:01:53]} 15. f5 {[%emt 0:04:32]} e5 {[%emt 0:15:43][%cal Of6e4]} 16. Nb3 {[%emt 0:18:22]} a5 {[%emt 0:09:12]} 17. Bg2 {[%emt 0:11:51]} a4 {[%emt 0:02:11]} (17... Nxg4 $2 18. Bb6 (18. Bxb7 Qxb7 19. Rxg4 d6 $18) 18... Qc8 19. Bxb7 (19. Nxa5 Bxg2 20. Qxg2 h5 $11) 19... Qxb7 20. Rxg4 $18 (20. Nxa5 Rxa5 21. Bxa5 Nf6 $18)) ({Black should play} 17... Bxg2 18. Qxg2 Rc8) 18. Nd4 $2 {[%emt 0:09:51] Loses the game.} b3 $19 {[%emt 0:05:05]} (18... exd4 19. Bf4 Qb6 20. Rge1+ Kd8 21. Kb1) 19. Nb5 {[%emt 0:09:27] [#]} (19. a3 $142 Rc8 (19... exd4 $2 20. Bf4 $19) 20. c3 Bxg2 (20... exd4 $2 21. Bf4 $19) 21. Qxg2 exd4 22. Bxd4) 19... Qc4 $1 {[%emt 0:02:00][%cal Ob3a2] Hoping for ...bxa2! Black is clearly winning.} (19... Qxc2+ 20. Qxc2 bxc2 21. Rd3 Bxg2 22. Rxg2 $15) 20. Qd3 {[%emt 0:11:44]} Qxd3 {[%emt 0:00:39]} (20... Qxg4 $2 {too greedy.} 21. Bxb7 bxa2 22. Nc7+ (22. Bxa8 a1=Q+ 23. Kd2 Qb4+ 24. Nc3 Qa2 $17) 22... Kd8 23. Rxg4 $18 (23. Bxa8 $2 {is the wrong capture.} a1=Q+ 24. Kd2 Bb4+ 25. c3 Qxb2+ 26. Ke1 Qxc3+ 27. Kf2 Qxd3 $19)) 21. cxd3 {[%emt 0:00:06] Nc7+ would now be deadly.} bxa2 {[%emt 0:02:46]} 22. Kd2 {[%emt 0:00:13] Threatens to win with Nc7+.} Bxg2 {[%emt 0:00:30]} 23. Rxg2 {[%emt 0:00:06] Black must now prevent Nc7+.} Rb8 {[%emt 0:00:04] Weighted Error Value: White=0.41/Black=0.07 (flawless) .  Loses game:     	White=1     	---        Mistake:       	White=2     	Black=1      Inaccurate:     	White=1     	---        OK:         	White=6     	Black=10     Best:        	White=1     	---        Strong:       	---       	Black=1} 0-1

[Event "Israel National League 2024"]
[Site "Israel"]
[Date "2024.03.01"]
[Round "9.16"]
[White "Iliaguev, Nisim"]
[Black "Rozentalis, Eduardas"]
[Result "0-1"]
[ECO "A14"]
[WhiteElo "2399"]
[BlackElo "2455"]
[Annotator "TA"]
[PlyCount "84"]
[EventDate "2024.01.07"]
[EventType "team-tourn"]
[EventCountry "ISR"]
[SourceTitle "playchess.com"]
[Source "ChessBase"]
[SourceQuality "1"]
[TimeControl "40/5400+30:1800+30"]

{[%evp 14,84,16,-15,-8,-12,0,-4,-25,-67,-62,-56,-56,-81,-72,-137,-78,-131,-85,-118,-105,-138,-106,-261,-200,-237,-99,-131,-122,-132,-131,-132,-145,-135,-102,-113,-108,-252,-257,-579,-254,-256,-229,-218,-220,-227,-229,-265,-270,-264,-255,-296,-311,-292,-240,-308,-317,-321,-313,-325,-294,-359,-355,-534,-464,-540,-540,-681,-651,-720,-720,-694,-614]} 1. c4 {[%emt 0:01:49]} e6 {[%emt 0:00:22]} 2. g3 {[%emt 0:00:13]} d5 {[%emt 0:00:30]} 3. Bg2 {[%emt 0:00:05]} Nf6 {[%emt 0:00:29]} 4. Nf3 {[%emt 0:04:28]} Be7 {[%emt 0:00:59]} 5. O-O {[%emt 0:00:15]} O-O {[%emt 0:00:04]} 6. b3 {[%emt 0:01:11]} b6 {[%emt 0:00:58]} 7. Bb2 {[%emt 0:00:56]} Bb7 {[%emt 0:00:10]} 8. Qc2 {[%emt 0:05:51]} c5 {[%emt 0:01:59]} 9. d4 {[%emt 0:09:42]} Nbd7 {[%emt 0:04:53]} 10. Rd1 {[%emt 0:06:08]} dxc4 {[%emt 0:03:15] The position is equal.} 11. dxc5 {[%emt 0:01:41] Ng5 is the strong threat.} cxb3 {[%emt 0:01:47]} (11... Bxc5 12. Qxc4 Qe7 13. Qf4 $11) 12. axb3 {[%emt 0:03:12]} Qc7 {[%emt 0:06:04]} (12... bxc5 $2 {perishes.} 13. Ng5 Bd5 14. e4 Nxe4 15. Nxe4 $18) 13. Nc3 {[%emt 0:21:27]} Bxc5 {[%emt 0:06:00]} (13... Qxc5 $2 14. Ba3 Qxa3 15. Rxa3 Bxa3 16. Rxd7 Nxd7 17. Ng5 $18) 14. Ra4 {[%emt 0:06:10]} (14. Qd2 $142) 14... Rfd8 {[%emt 0:09:26]} (14... a6 $142 15. Nd2 Bxg2 16. Kxg2 b5) 15. e3 {[%emt 0:07:11]} (15. Rc4 $142) 15... Bc6 {[%emt 0:07:47]} (15... a6 $142 $1 16. Rh4 Rac8) 16. Rf4 {[%emt 0:12:45]} Qb7 {[%emt 0:03:51] aiming for ...e5.} 17. b4 {[%emt 0:05:11] [#]} Bxb4 {[%emt 0:03:17]} 18. Nb5 {[%emt 0:07:04]} (18. Rxb4 $17 Bxf3 19. Bxf3 Qxf3 20. Rbd4) 18... Rac8 {[%emt 0:08:30]} 19. Bxf6 {[%emt 0:03:37]} Nxf6 {[%emt 0:03:01]} (19... Bxb5 $19 20. Ne5 Qb8 (20... Nxf6 $2 {loses.} 21. Rxd8+ Rxd8 22. Bxb7 $18) (20... gxf6 21. Qb1 $11)) 20. Nxa7 {[%emt 0:01:02]} Rxd1+ {[%emt 0:10:48]} 21. Qxd1 {[%emt 0:00:01]} Qxa7 {[%emt 0:00:10]} 22. Rxb4 {[%emt 0:00:04]} Qb7 {[%emt 0:01:33]} 23. Nh4 {[%emt 0:01:24]} h6 {[%emt 0:02:39]} 24. Bxc6 {[%emt 0:00:30]} Qxc6 {[%emt 0:00:10]} 25. Rb1 {[%emt 0:00:31]} (25. Nf3 $17) 25... Ne4 $19 {[%emt 0:02:29] Threatens to win with ...Nc3.} 26. Qd4 {[%emt 0:00:30]} (26. Qd3 {is a better chance.}) 26... Ng5 {[%emt 0:02:10]} (26... Nxf2 $142 {( -> ...Qh1+)} 27. e4 Nh3+ (27... Nxe4 $2 28. Qxb6 Qd5 29. Nf3 $19) (27... Qxe4 $2 28. Qxe4 Nxe4 29. Rxb6 $19) 28. Kh1 Ng5) 27. e4 {[%emt 0:00:20]} Qxe4 {[%emt 0:04:00]} 28. Qxe4 {[%emt 0:00:12]} Nxe4 {[%emt 0:00:06][%mdl 4096] Endgame. KRN-KRN} 29. Rb4 {[%emt 0:00:04] [#]} Nd2 {[%emt 0:01:00] And now ...g5 would win.} 30. f4 {[%emt 0:00:58]} Rc1+ {[%emt 0:03:28]} 31. Kf2 {[%emt 0:00:29]} Rb1 {[%emt 0:00:09]} 32. Rxb1 {[%emt 0:00:33]} Nxb1 {[%emt 0:00:05] KN-KN} 33. Ke3 {[%emt 0:00:03]} Nc3 {[%emt 0:01:18]} 34. Nf3 {[%emt 0:00:08]} Kf8 {[%emt 0:00:19]} 35. Kd4 {[%emt 0:00:11]} Nd5 {[%emt 0:00:31]} 36. f5 {[%emt 0:00:04]} Ke7 {[%emt 0:00:16]} 37. fxe6 {[%emt 0:00:43]} Kxe6 {[%emt 0:00:30]} 38. g4 {[%emt 0:00:38]} (38. Kc4 {keeps fighting.}) 38... Ne7 {[%emt 0:01:09] Black is clearly winning.} 39. Ke4 {[%emt 0:00:36]} Nc6 {[%emt 0:00:38]} 40. h4 {[%emt 0:00:27]} b5 {[%emt 0:00:22]} 41. h5 {[%emt 0:30:22]} b4 {[%emt 0:33:42]} 42. Nd2 {[%emt 0:00:44]} Na5 {[%emt 0:02:41] Weighted Error Value: White=0.48/Black=0.32.  Mistake:       	White=6     	Black=4      Inaccurate:     	White=3     	---        OK:         	White=4     	Black=15     Best:        	White=2     	Black=1} 0-1

[Event "Israel National League 2024"]
[Site "Israel"]
[Date "2024.03.01"]
[Round "9.17"]
[White "Raznikov, Danny"]
[Black "Karp, Ilya"]
[Result "0-1"]
[ECO "E90"]
[WhiteElo "2476"]
[BlackElo "2382"]
[Annotator "TA"]
[PlyCount "66"]
[EventDate "2024.01.07"]
[EventType "team-tourn"]
[EventCountry "ISR"]
[SourceTitle "playchess.com"]
[Source "ChessBase"]
[SourceQuality "1"]
[TimeControl "40/5400+30:1800+30"]

{[%evp 13,66,11,24,0,3,-17,0,-36,-40,-47,-31,-67,-48,-32,-40,-35,-56,-111,-97,-119,-94,-136,-125,-143,-119,-154,-165,-193,-202,-187,-210,-220,-221,-204,-140,-133,-167,-134,-127,-154,-141,-288,-264,-451,-429,-712,-165,-727,-669,-724,-713,-718,-711,-1027,-1016]} 1. d4 {[%emt 0:00:03]} Nf6 {[%emt 0:04:15]} 2. c4 {[%emt 0:00:52]} g6 {[%emt 0:00:25]} 3. Nc3 {[%emt 0:01:36]} Bg7 {[%emt 0:00:10]} 4. e4 {[%emt 0:01:20]} d6 {[%emt 0:00:07]} 5. h3 {[%emt 0:00:23]} O-O {[%emt 0:00:26]} 6. Be3 {[%emt 0:00:07]} Nc6 {[%emt 0:00:08]} 7. Nf3 {[%emt 0:03:31]} e5 $1 {[%emt 0:00:05]} 8. d5 {[%emt 0:00:37]} Nd4 {[%emt 0:00:05]} 9. Bd3 {[%emt 0:02:05]} Nh5 {[%emt 0:10:51]} 10. Bxd4 {[%emt 0:16:25] The position is equal.} exd4 {[%emt 0:00:12]} 11. Ne2 {[%emt 0:00:10]} c5 {[%emt 0:05:37]} 12. g4 {[%emt 0:24:29]} Qf6 {[%emt 0:20:31]} 13. Nfg1 {[%emt 0:02:25]} Nf4 {[%emt 0:00:46]} 14. Nxf4 {[%emt 0:00:56]} Qxf4 {[%emt 0:00:31]} 15. Ne2 {[%emt 0:00:28]} (15. Qd2 $15 Qf6 16. f4) 15... Qh6 {[%emt 0:01:58] Hoping for ...Bxg4.} 16. Qd2 {[%emt 0:09:59]} Qh4 $36 {[%emt 0:01:15][%mdl 2048] [#] ...Bh6 is the strong threat. White is under strong pressure.} 17. Qf4 {[%emt 0:06:58]} Be5 {[%emt 0:01:23]} 18. Qf3 {[%emt 0:00:07]} Bd7 {[%emt 0:01:09]} 19. a4 {[%emt 0:02:30]} a6 {[%emt 0:01:20][%cal Ob7b5] Black is more active.} 20. Qg2 {[%emt 0:09:50] [#]} b5 $1 {[%emt 0:07:01][%mdl 512]} 21. axb5 {[%emt 0:03:31]} (21. O-O bxa4) 21... axb5 {[%emt 0:00:06]} 22. O-O {[%emt 0:00:13]} bxc4 {[%emt 0:06:11]} 23. Bxc4 {[%emt 0:00:19]} Rab8 {[%emt 0:00:52]} 24. f4 {[%emt 0:03:51]} Bg7 {[%emt 0:00:54]} 25. Nc1 {[%emt 0:01:36]} h5 {[%emt 0:15:42][%cal Rh5g4]} 26. Ra7 {[%emt 0:01:05]} Rfd8 {[%emt 0:01:18][%cal Rh5g4]} 27. f5 {[%emt 0:02:37] Now White is beyond hope.} (27. Nd3 $17 {was worth a try.}) 27... hxg4 {[%emt 0:01:56]} 28. fxg6 $2 {[%emt 0:02:24]} (28. Qxg4 Qxg4+ 29. hxg4 Rxb2 30. g5 (30. Nd3 $2 Rc2 $19)) 28... fxg6 $19 {[%emt 0:00:47] White must now prevent ...g3.} (28... Qxh3 29. gxf7+ (29. Rxf7 $2 Qe3+ 30. Qf2 Qxc1+ $19) 29... Kf8 30. Qxh3 gxh3 31. Nd3 $11) 29. Nd3 {[%emt 0:01:08]} (29. e5 $142 Bxe5 30. Nd3) 29... Bh6 $2 {[%emt 0:07:31]} (29... Qxh3 30. Qxh3 gxh3 31. Rc7 $19) (29... Rf8 30. hxg4 Bh6 (30... Qxg4 31. Rxf8+ Bxf8 32. Qxg4 $11) (30... Bxg4 $2 31. Nf2 $19) (30... Rxf1+ $2 31. Qxf1 Rf8 32. Rxd7 $19)) 30. e5 $2 {[%emt 0:01:56]} (30. Kh2) 30... Bf5 {[%emt 0:01:52] Black is clearly winning.} ({Stronger than} 30... gxh3 31. Qxg6+ Kh8 32. Kh1 $18 (32. Qxd6 $2 {gets mated.} Qg5+ 33. Kh2 Qg2#)) ({Not} 30... Qxh3 31. Qxh3 gxh3 32. e6 $14) 31. Rxf5 {[%emt 0:01:01]} gxf5 {[%emt 0:00:18]} 32. exd6 {[%emt 0:00:59]} Rxd6 {[%emt 0:01:56] ...Re8 would now be deadly.} 33. b3 {[%emt 0:00:41]} Re8 {[%emt 0:02:01] Weighted Error Value: White=0.90/Black=0.25 (precise) .  Mistake:       	White=5     	Black=1      Inaccurate:     	White=3     	Black=1      OK:         	White=6     	Black=9      Best:        	White=1     	Black=1} 0-1

[Event "Israel National League 2024"]
[Site "Israel"]
[Date "2024.03.01"]
[Round "9.18"]
[White "Mordechai, Hanan"]
[Black "Mindlin, Alon"]
[Result "1/2-1/2"]
[ECO "C45"]
[WhiteElo "2347"]
[BlackElo "2438"]
[Annotator "TA"]
[PlyCount "47"]
[EventDate "2024.01.07"]
[EventType "team-tourn"]
[EventCountry "ISR"]
[SourceTitle "playchess.com"]
[Source "ChessBase"]
[SourceQuality "1"]
[TimeControl "40/5400+30:1800+30"]

{[%evp 18,47,7,-7,-8,0,46,45,41,35,40,48,55,25,27,26,96,71,66,37,36,-15,-14,-19,-29,-35,0,0,20,27,28,4]} 1. e4 {[%emt 0:00:08]} e5 {[%emt 0:00:30]} 2. Nf3 {[%emt 0:00:06]} Nc6 {[%emt 0:00:05]} 3. d4 {[%emt 0:00:06]} exd4 {[%emt 0:00:06]} 4. Nxd4 {[%emt 0:00:03]} Nf6 {[%emt 0:00:06]} 5. Nxc6 {[%emt 0:00:05]} bxc6 {[%emt 0:00:04]} 6. e5 {[%emt 0:00:04]} Qe7 {[%emt 0:00:07]} 7. Qe2 {[%emt 0:00:06]} Nd5 {[%emt 0:00:04]} 8. c4 {[%emt 0:00:06]} Nb6 {[%emt 0:00:07]} 9. Nc3 {[%emt 0:00:09]} Qe6 {[%emt 0:00:08]} 10. Qe4 {[%emt 0:00:16]} g6 {[%emt 0:00:06]} 11. Bd2 {[%emt 0:00:31]} Bg7 {[%emt 0:06:52]} (11... Ba6 $11) 12. c5 $14 {[%emt 0:00:31]} Nd5 {[%emt 0:00:19] White is slightly better.} 13. Bc4 {[%emt 0:00:09]} Bb7 {[%emt 0:07:59]} 14. O-O {[%emt 0:02:01]} O-O {[%emt 0:24:23]} 15. Rae1 {[%emt 0:01:22]} Rae8 {[%emt 0:07:44][%cal Rg7e5]} 16. Qf3 {[%emt 0:08:46]} Qf5 {[%emt 0:14:30]} (16... Kh8 $11 {remains equal.}) 17. Qxf5 $16 {[%emt 0:16:28]} gxf5 {[%emt 0:00:06]} 18. f4 {[%emt 0:00:06]} f6 {[%emt 0:00:30][%cal Rf6e5]} 19. Bd3 {[%emt 0:09:03]} (19. e6 $14 dxe6 20. Rf3) 19... fxe5 $11 {[%emt 0:03:37]} 20. fxe5 {[%emt 0:00:15]} Bxe5 {[%emt 0:09:25]} 21. Rxf5 {[%emt 0:08:25]} Rxf5 {[%emt 0:11:28]} 22. Bxf5 {[%emt 0:00:12]} Nxc3 {[%emt 0:02:46]} 23. bxc3 {[%emt 0:04:44]} d6 {[%emt 0:00:03]} 24. Re4 {[%emt 0:23:54] Weighted Error Value: White=0.14 (very precise) /Black=0.19 (very precise) .  Mistake:       	White=1     	Black=2      Inaccurate:     	White=2     	Black=1      OK:         	White=2     	Black=2      Best:        	White=3     	Black=3} 1/2-1/2

[Event "Israel National League 2024"]
[Site "Israel"]
[Date "2024.03.01"]
[Round "9.19"]
[White "Parkhov, Yair"]
[Black "Gelfand, Boris"]
[Result "1/2-1/2"]
[ECO "D53"]
[WhiteElo "2495"]
[BlackElo "2664"]
[Annotator "TA"]
[PlyCount "41"]
[EventDate "2024.01.07"]
[EventType "team-tourn"]
[EventCountry "ISR"]
[SourceTitle "playchess.com"]
[Source "ChessBase"]
[SourceQuality "1"]
[TimeControl "40/5400+30:1800+30"]

{[%evp 13,41,22,21,12,22,17,49,22,34,0,0,0,11,1,0,0,0,-7,33,0,0,0,0,0,0,0,0,0,0,0]} 1. d4 {[%emt 0:02:25]} Nf6 {[%emt 0:03:29]} 2. c4 {[%emt 0:00:04]} e6 {[%emt 0:00:04]} 3. Nf3 {[%emt 0:00:03]} d5 {[%emt 0:00:15]} 4. Nc3 {[%emt 0:00:04]} c6 {[%emt 0:00:43]} 5. Bg5 {[%emt 0:00:05]} h6 {[%emt 0:00:05]} 6. Bh4 {[%emt 0:00:03]} Be7 {[%emt 0:01:31]} 7. e3 {[%emt 0:02:28]} O-O {[%emt 0:02:55]} 8. Bd3 {[%emt 0:00:11]} dxc4 {[%emt 0:01:18]} 9. Bxc4 {[%emt 0:00:05]} c5 {[%emt 0:00:03]} 10. O-O {[%emt 0:01:09] White is slightly better.} cxd4 {[%emt 0:02:29]} 11. exd4 {[%emt 0:00:05]} Nc6 {[%emt 0:00:18]} 12. Re1 {[%emt 0:01:03]} Nh5 {[%emt 0:07:09]} 13. Bxe7 {[%emt 0:00:20]} Nxe7 {[%emt 0:01:36]} 14. Ne5 {[%emt 0:00:05]} Nf6 {[%emt 0:01:06]} 15. a4 {[%emt 0:00:04]} Bd7 {[%emt 0:11:18]} 16. d5 {[%emt 0:14:59]} exd5 {[%emt 0:01:10] The position is equal.} 17. Nxd5 {[%emt 0:00:14]} Nexd5 {[%emt 0:01:18]} 18. Bxd5 {[%emt 0:01:34]} Nxd5 {[%emt 0:00:35]} 19. Qxd5 {[%emt 0:00:08]} Bc8 {[%emt 0:02:59]} 20. Qf3 {[%emt 0:15:06]} Rb8 {[%emt 0:04:12]} 21. Rad1 {[%emt 0:14:06] Weighted Error Value: White=0.12 (very precise) /Black=0.07 (flawless) .  Inaccurate:     	White=3     	Black=2      OK:         	White=5     	Black=6} 1/2-1/2